[Event "34th MPL National U14-ch 2022"]
[Site "Ahmedabad"]
[Date "2022.05.10"]
[Round "3.5"]
[White "Mayank Chakraborty"]
[Black "Snehil Raj Singh"]
[Result "0-1"]
[ECO "B99"]
[WhiteElo "2015"]
[BlackElo "1545"]
[Annotator "TA"]
[PlyCount "80"]
[EventDate "2022.05.09"]
[EventType "swiss"]
[EventCountry "IND"]
[SourceTitle "playchess.com"]
[Source "ChessBase"]
[SourceQuality "1"]
[TimeControl "5400+30"]

{[%evp 36,80,100,106,95,101,97,97,96,20,18,-25,-29,-45,-26,-38,0,-62,-69,-171,-172,-392,-399,-387,-399,-386,-383,-523,-516,-653,-640,-974,-970,-952,-941,-1199,-947,-922,-915,-977,-603,-574,-551,-29990,-29991,-29991,-29992]} 1. e4 {[%emt 0:00:15]} c5 {[%emt 0:00:37]} 2. Nf3 {[%emt 0:00:06]} d6 {[%emt 0:00:05]} 3. d4 {[%emt 0:00:05]} cxd4 {[%emt 0:00:05]} 4. Nxd4 {[%emt 0:00:08]} Nf6 {[%emt 0:00:07]} 5. Nc3 {[%emt 0:00:06]} a6 {[%emt 0:00:05]} 6. Bg5 {[%emt 0:00:05]} e6 {[%emt 0:00:05]} 7. f4 {[%emt 0:00:06]} Be7 {[%emt 0:00:06]} 8. Qf3 {[%emt 0:00:04]} Qc7 {[%emt 0:00:05]} 9. O-O-O {[%emt 0:00:06]} Nbd7 {[%emt 0:00:11]} 10. g4 {[%emt 0:00:12]} b5 {[%emt 0:00:14]} 11. Bxf6 {[%emt 0:00:19]} Nxf6 {[%emt 0:00:07]} 12. g5 {[%emt 0:00:05]} Nd7 {[%emt 0:00:06]} 13. f5 {[%emt 0:00:05]} Bxg5+ {[%emt 0:00:05]} 14. Kb1 {[%emt 0:00:05]} Ne5 {[%emt 0:00:06]} 15. Qh5 {[%emt 0:00:06]} Qe7 {[%emt 0:00:05]} 16. Nxe6 {[%emt 0:00:19]} Bxe6 {[%emt 0:00:08]} 17. fxe6 {[%emt 0:00:05]} g6 {[%emt 0:00:06]} 18. exf7+ {[%emt 0:00:05]} Kxf7 {[%emt 0:00:08]} 19. Qh3 $1 {[%emt 0:00:06]} Kg7 {[%emt 0:01:22] B99: Sicilian Najdorf: 6 Bg5 e6 7 f4 Be7 8 Qf3 Qc7 9 0-0-0 Nbd7.} 20. Nd5 {[%emt 0:01:20]} Qd8 {[%emt 0:00:10]} 21. Qc3 {[%emt 0:05:19]} Ra7 {[%emt 0:12:00][%cal Ba8a7,Ba7f7,Bf7f4][%mdl 32] [#] Prevents Nc7. White is better.} 22. a4 $146 {[%emt 0:10:59]} (22. Qa3 $16) ({Predecessor:} 22. Qa3 Bh4 23. Bxb5 Bf2 24. Be2 a5 25. Qc3 Rf8 26. Rhf1 Raf7 27. a3 Bc5 28. Rxf7+ Rxf7 {1-0 (54) Biedermann,K (2384)-Asquith,J (2415) ICCF email 2017}) 22... bxa4 {[%emt 0:18:31]} 23. h4 {[%emt 0:01:20]} Bxh4 {[%emt 0:12:18]} 24. Nf4 {[%emt 0:00:11] aiming for Ne6+.} Re8 {[%emt 0:19:47] Inhibits Ne6+.} 25. Qh3 {[%emt 0:00:35]} Kg8 {[%emt 0:01:20]} (25... Kh8 $5) 26. Qa3 {[%emt 0:20:15]} (26. Qxh4 $11 Qxh4 27. Rxh4) 26... Rf7 $15 {[%emt 0:16:02]} 27. Rxd6 {[%emt 0:06:55]} (27. Nd5 $15) 27... Qa5 $19 {[%emt 0:00:21]} 28. Rxa6 $2 {[%emt 0:14:23]} (28. b4 Qc7 29. Re6 (29. Qxa4 $2 Ref8 $19)) 28... Qe1+ {[%emt 0:01:54]} 29. Ka2 {[%emt 0:00:04][%cal Oa3c5]} Rxf4 {[%emt 0:07:40] Chess con chili.} 30. Qxa4 {[%emt 0:01:16] [#]} Kf8 {[%emt 0:00:14]} ({But not} 30... Rc8 {[#]} 31. Bc4+ $1 {[%mdl 512]} Nxc4 32. Rxe1 Bxe1 33. Qd7 $18) 31. Qb5 {[%emt 0:09:24]} Qxe4 {[%emt 0:02:17]} 32. Rh2 {[%emt 0:02:40]} Ra8 {[%emt 0:03:01]} 33. b3 {[%emt 0:03:36]} Rxa6+ {[%emt 0:00:40]} 34. Qxa6 {[%emt 0:00:06]} Kg7 {[%emt 0:01:30]} 35. Re2 {[%emt 0:01:56]} Qf5 {[%emt 0:00:21]} 36. Bg2 {[%emt 0:00:58]} Nf7 {[%emt 0:01:35] Strongly threatening ...Bf6.} 37. Qa7 {[%emt 0:03:20]} Rf2 {[%emt 0:02:51]} 38. Be4 {[%emt 0:00:25]} Qf6 {[%emt 0:00:38] ( -> ...Rf1)} 39. Re3 {[%emt 0:00:14]} Rf1 {[%emt 0:00:18][%csl Gf6][%cal Rf1a1]} 40. c3 {[%emt 0:01:21]} Qf2+ {[%emt 0:00:09] White got outplayed after the opening.  Weighted Error Value: White=0.82/Black=0.32} 0-1

[Event "34th MPL National U14-ch 2022"]
[Site "Ahmedabad"]
[Date "2022.05.10"]
[Round "3.6"]
[White "Karthik N"]
[Black "Shaik Sumer Arsh"]
[Result "0-1"]
[ECO "C77"]
[WhiteElo "1516"]
[BlackElo "1999"]
[Annotator "TA"]
[PlyCount "119"]
[EventDate "2022.05.09"]
[EventType "swiss"]
[EventCountry "IND"]
[SourceTitle "playchess.com"]
[Source "ChessBase"]
[SourceQuality "1"]
[TimeControl "5400+30"]

{[%evp 14,119,-12,-18,112,-15,-15,-28,-24,-28,13,-23,-7,-15,-8,0,22,10,14,6,10,8,4,11,40,0,45,-14,-20,-26,-9,-53,-57,-134,-142,-144,-136,-140,43,41,56,43,49,46,75,66,100,93,100,97,117,0,0,0,0,0,0,0,76,-87,-82,-355,-153,-160,-145,-29971,-29971,-29973,-29973,-29973,-29972,-29977,-29978,-29976,-29956,-2108,-543,-427,-262,-29973,-2141,-5070,0,-29975,-29976,-29975,-29977,-29977,-29978,-29978,-29979,-29979,-29980,-29979,-29979,-29979,-29980,-29980,-29981,-29981,-29982,-29983,-29984,-29984,-29985,-29985,-29986,-29986]} 1. e4 {[%emt 0:00:07]} e5 {[%emt 0:00:08]} 2. Nf3 {[%emt 0:00:04]} Nc6 {[%emt 0:00:08]} 3. Bb5 {[%emt 0:00:05]} a6 {[%emt 0:00:08]} 4. Ba4 {[%emt 0:00:01]} Nf6 {[%emt 0:00:11]} 5. Qe2 {[%emt 0:00:07]} b5 {[%emt 0:00:31]} 6. Bb3 {[%emt 0:00:08]} Bc5 {[%emt 0:00:08]} 7. c3 {[%emt 0:00:36]} O-O {[%emt 0:00:32]} 8. O-O {[%emt 0:00:09][%cal Od2d4]} h6 {[%emt 0:01:08] C77: Ruy Lopez: 3...a6 4 Ba4 Nf6, unusual lines.} (8... d6 $11 {keeps the balance.}) 9. Rd1 {[%emt 0:00:27]} (9. d4 $1 $16 {[%cal Rd4c5]} exd4 10. e5) 9... Re8 $11 {[%emt 0:01:30]} 10. d3 {[%emt 0:01:23]} d6 {[%emt 0:10:19] Black has an edge.} 11. Be3 {[%emt 0:02:18] [#]} Rb8 $146 {[%emt 0:02:15]} ({Predecessor:} 11... Bxe3 12. Qxe3 Na5 13. Bc2 c5 14. Nbd2 Qc7 15. Rac1 d5 16. b4 d4 17. cxd4 exd4 {½-½ (34) Barlov,D (2440)-Todorovic,G (2461) Kragujevac 2015}) 12. Nbd2 {[%emt 0:09:55]} Bb6 {[%emt 0:01:15]} 13. a4 {[%emt 0:03:55]} Bxe3 {[%emt 0:10:44]} (13... Na5 {with more complications.} 14. Bxb6 Nxb3 15. Ba7 Nxd2 16. Qxd2 Ra8) 14. Qxe3 {[%emt 0:02:32]} Be6 {[%emt 0:10:19]} 15. Bxe6 {[%emt 0:01:19]} Rxe6 {[%emt 0:00:03]} 16. axb5 {[%emt 0:00:10]} axb5 {[%emt 0:00:39]} 17. d4 {[%emt 0:08:44]} exd4 {[%emt 0:06:13]} 18. cxd4 {[%emt 0:01:25]} Qe8 {[%emt 0:09:19]} 19. Qd3 {[%emt 0:00:57]} Re7 {[%emt 0:14:54][%cal Rf6e4]} (19... Nxe4 20. d5 Nxd2 21. dxe6 Nxf3+ 22. Qxf3 fxe6 23. Qe4 $14) 20. Re1 {[%emt 0:02:20]} (20. Nh4 $1 $14) 20... Nb4 {[%emt 0:02:48]} 21. Qc3 {[%emt 0:01:02]} c5 {[%emt 0:00:02]} 22. dxc5 {[%emt 0:02:12]} dxc5 {[%emt 0:00:05]} 23. e5 {[%emt 0:00:28]} (23. Nh4 $15) 23... Nfd5 $1 $17 {[%emt 0:00:02]} 24. Qxc5 {[%emt 0:01:00]} Rc7 {[%emt 0:00:16]} 25. Qd4 {[%emt 0:01:24]} Qe6 $2 {[%emt 0:01:59]} (25... Rd8 $17 {Hoping for ...Qd7.} 26. Ne4 Nc2) 26. Qe4 $14 {[%emt 0:00:42]} Nc2 {[%emt 0:01:44]} 27. Nd4 {[%emt 0:00:07] Prevents f5.} Nxd4 {[%emt 0:00:03]} 28. Qxd4 {[%emt 0:00:06]} Rbc8 {[%emt 0:00:06]} 29. Rad1 {[%emt 0:01:20]} Rc2 {[%emt 0:01:21]} 30. Nf3 {[%emt 0:02:49]} Ne7 {[%emt 0:11:17]} 31. Qb4 {[%emt 0:00:42]} Nc6 {[%emt 0:01:49]} 32. Qe4 {[%emt 0:01:12]} ({Better is} 32. Qxb5 $16 {h3 is the strong threat.} Qf5 33. Rd6) 32... Rxb2 $11 {[%emt 0:03:36]} 33. Rd6 {[%emt 0:03:31]} Qc4 {[%emt 0:00:03]} 34. Qf5 {[%emt 0:00:02]} Ne7 {[%emt 0:00:38]} 35. Qd7 {[%emt 0:00:11]} Qc5 {[%emt 0:02:37]} 36. Nd4 $2 {[%emt 0:01:27]} (36. Rf1 $16 {stays on course.} Qc7 37. e6 Qxd7 38. exd7) 36... Qxe5 $17 {[%emt 0:02:03][%cal Re5e1]} 37. Nc2 {[%emt 0:03:23][%mdl 8192] [#]} Qc3 $1 $40 {[%emt 0:01:42][%mdl 128] White is in trouble.} 38. Qxe7 {[%emt 0:05:48]} Qxc2 {[%emt 0:00:03]} 39. Rd8+ $4 {[%emt 0:00:52][%mdl 8192]} (39. Qe3 $17) 39... Kh7 {[%emt 0:00:30]} 40. Rf1 {[%emt 0:01:14]} Rxd8 {[%emt 0:00:01]} 41. Qxd8 {[%emt 0:00:02] KQR-KQR} Rb1 {[%emt 0:00:01]} 42. g4 {[%emt 0:04:45]} Rxf1+ {[%emt 0:00:07]} 43. Kxf1 {[%emt 0:00:04] KQ-KQ} Qc4+ {[%emt 0:00:20]} 44. Ke1 {[%emt 0:00:06]} Qe4+ {[%emt 0:00:16]} (44... b4 $142 {( -> ...b3)} 45. Qd1 b3 46. Qb1+ Kh8) 45. Kd2 $19 {[%emt 0:00:15]} b4 {[%emt 0:01:57][%cal Bb5b4,Bb4b3][%mdl 32] White must now prevent ...b3.} 46. h3 $2 {[%emt 0:03:47]} (46. Qc8 $19) 46... Qf4+ {[%emt 0:01:10]} (46... b3 $142 47. Qd3 Qxd3+ 48. Kxd3 Kg6 49. f4 f5 50. Kc3 fxg4 51. hxg4 Kf6 52. f5 Kg5 53. Kxb3 Kxg4 54. Kc4 Kxf5 55. Kd5 g5 56. Kd4 Kf4 57. Kd3 g4 58. Kd2 h5 59. Ke1 h4 60. Kf2 h3 61. Kf1 g3 62. Ke1 h2 63. Ke2 g2 64. Kd3 g1=Q 65. Kd2 h1=Q 66. Kc2 Qc6+ 67. Kb2 Qgb6+ 68. Ka3 Qa8#) 47. Ke2 {[%emt 0:00:10]} Qe4+ {[%emt 0:00:32]} (47... Qc4+ $19 48. Ke3 Qc3+ 49. Ke2 Qxh3) 48. Kd2 {[%emt 0:01:14]} b3 {[%emt 0:00:02] Black mates.} 49. Qd3 {[%emt 0:00:10] [#]} Qxd3+ $1 {[%emt 0:00:01]} 50. Kxd3 {[%emt 0:00:02] KP-KP} Kg6 {[%emt 0:00:01]} 51. f4 {[%emt 0:00:14]} f5 {[%emt 0:00:01]} 52. Kc3 {[%emt 0:00:21]} fxg4 {[%emt 0:00:02]} 53. hxg4 {[%emt 0:00:02] K3P-KPP} h5 {[%emt 0:00:00]} 54. f5+ {[%emt 0:00:15]} Kg5 {[%emt 0:00:10]} 55. gxh5 {[%emt 0:00:01]} Kxh5 {[%emt 0:00:41]} 56. Kxb3 {[%emt 0:00:02]} Kg5 {[%emt 0:00:01]} 57. f6 {[%emt 0:01:32]} gxf6 {[%emt 0:00:52]} 58. Kc2 {[%emt 0:00:16]} Kf4 {[%emt 0:00:01]} 59. Kd3 {[%emt 0:00:01]} Kf3 {[%emt 0:10:36]} 60. Kd4 {[%emt 0:40:57] Weighted Error Value: White=0.58/Black=0.64} 0-1

[Event "34th MPL National U14-ch 2022"]
[Site "Ahmedabad"]
[Date "2022.05.10"]
[Round "3.7"]
[White "Sahib Singh"]
[Black "Sushanth Kamabathula"]
[Result "1-0"]
[ECO "B25"]
[WhiteElo "1991"]
[BlackElo "1536"]
[Annotator "TA"]
[PlyCount "95"]
[EventDate "2022.05.09"]
[EventType "swiss"]
[EventCountry "IND"]
[SourceTitle "playchess.com"]
[Source "ChessBase"]
[SourceQuality "1"]
[TimeControl "5400+30"]

{[%evp 20,95,-8,-25,0,13,20,21,44,64,151,92,206,191,183,191,231,232,228,238,262,267,356,345,336,329,327,312,304,228,283,200,180,163,285,272,436,189,189,189,189,189,189,189,189,189,189,189,189,189,189,163,337,337,383,337,337,163,762,419,29976,29977,29977,29978,29977,29978,29980,29977,29977,29978,29984,29985,29986,29987,29987,29988,29996,29997]} 1. e4 {[%emt 0:05:28]} c5 {[%emt 0:00:34]} 2. Nc3 {[%emt 0:00:06]} d6 {[%emt 0:00:08]} 3. f4 {[%emt 0:00:04]} Nc6 {[%emt 0:00:41]} 4. Nf3 {[%emt 0:00:07]} g6 {[%emt 0:00:18]} 5. g3 {[%emt 0:00:07]} Bg7 {[%emt 0:00:24]} 6. Bg2 {[%emt 0:00:04]} e6 {[%emt 0:01:03]} 7. O-O {[%emt 0:00:06]} Nge7 {[%emt 0:00:06]} 8. d3 {[%emt 0:00:05]} O-O {[%emt 0:00:09]} 9. Be3 {[%emt 0:00:51]} Rb8 {[%emt 0:00:59] 9...b6 is the modern continuation.} 10. Qd2 {[%emt 0:02:06]} b5 {[%emt 0:02:31]} 11. d4 {[%emt 0:01:36]} cxd4 {[%emt 0:12:44] B25: Closed Sicilian: 3 g3, lines without early Be3.} 12. Nxd4 {[%emt 0:00:15]} a6 {[%emt 0:03:01]} 13. Rad1 {[%emt 0:01:07]} Na5 {[%emt 0:06:14] The position is equal.} 14. b3 {[%emt 0:07:03] [#] Against Nc4} Bb7 $146 {[%emt 0:01:45] [#]} (14... Re8 $14) ({Predecessor:} 14... Qc7 15. Nde2 Rd8 16. Bd4 Bb7 17. Bxg7 Kxg7 18. f5 exf5 19. exf5 gxf5 20. Qg5+ Kh8 {1-0 (43) Astashin,A (2210)-Tropin,A (2052) Saratov 2006}) 15. a4 {[%emt 0:07:46] White is more active.} (15. f5 $142 $1 {[%cal Rf5f6]}) 15... Bc6 {[%emt 0:19:19]} (15... Nac6 $16) 16. axb5 {[%emt 0:01:50]} axb5 {[%emt 0:01:59]} 17. f5 {[%emt 0:04:09]} exf5 {[%emt 0:01:02]} 18. exf5 {[%emt 0:01:31] And now f6 would win.} Nxf5 {[%emt 0:05:54]} 19. Nxf5 {[%emt 0:05:15]} ({And not} 19. Nxc6 Nxc6 20. Bxc6 Nxe3 21. Qxe3 Bxc3 $11) (19. Bxc6 Bxd4 20. Rxf5 (20. Bxd4 Nxc6 21. Bf2 Qa5 $11) 20... Nxc6 $11) 19... gxf5 {[%emt 0:00:59]} 20. Nd5 {[%emt 0:00:28]} ({Much less strong is} 20. Rxf5 $6 Bxg2 21. Kxg2 Qc8 $18) 20... Bxd5 {[%emt 0:02:10]} 21. Bxd5 {[%emt 0:00:16]} Rc8 {[%emt 0:00:59]} 22. Rxf5 {[%emt 0:00:24]} Nc6 {[%emt 0:00:29]} 23. Rdf1 {[%emt 0:18:54]} Ne5 {[%emt 0:02:00]} 24. Bd4 {[%emt 0:00:06] A strong pair of Bishops.} Qe7 {[%emt 0:08:19]} 25. c4 {[%emt 0:14:54]} bxc4 {[%emt 0:03:27]} 26. bxc4 {[%emt 0:00:06] aiming for Bxe5.} Rce8 {[%emt 0:05:22]} (26... Kh8 $142 27. Bxe5 Qa7+ 28. Kg2 dxe5 29. Rxf7 Rxf7 30. Rxf7 Qd4) 27. c5 $18 {[%emt 0:12:35]} Qa7 $2 {[%emt 0:04:58]} (27... dxc5 28. Bxe5 Bxe5 29. Rxf7 Rxf7) 28. Kh1 {[%emt 0:03:28]} (28. c6 $142 Nf3+ 29. R5xf3 Qxd4+ 30. Qxd4 Bxd4+ 31. Kh1) 28... dxc5 {[%emt 0:05:23]} 29. Bxe5 {[%emt 0:00:42]} Rxe5 {[%emt 0:00:07] [#]} 30. Rxf7 {[%emt 0:00:27]} Rxf7 {[%emt 0:00:13]} 31. Bxf7+ {[%emt 0:00:07]} Qxf7 {[%emt 0:00:05]} 32. Rxf7 {[%emt 0:00:36]} Kxf7 {[%emt 0:00:05][%mdl 4096] Endgame KQ-KRB} 33. Qd7+ {[%emt 0:00:05]} Kf8 {[%emt 0:01:15]} 34. Kg2 {[%emt 0:00:39]} Kg8 {[%emt 0:00:31]} 35. Kf3 {[%emt 0:00:37]} Kf8 $2 {[%emt 0:01:22]} (35... Bf6 {was worth a try.} 36. h4 h5) 36. g4 {[%emt 0:01:07]} Kg8 {[%emt 0:01:52]} 37. h4 {[%emt 0:00:18][%cal Bh2h4,Bh4g5][%mdl 32] Black must now prevent Kf4.} h6 {[%emt 0:04:49]} 38. Kf4 {[%emt 0:00:20]} (38. g5 $142 {g6 would kill now.} Kh7 39. Qd3+ Kh8 40. Qc4) 38... Kf8 $2 {[%emt 0:01:34]} (38... Bf6 39. Qd3 Kg7) 39. g5 {[%emt 0:02:19] Threatens to win with g6.} hxg5+ {[%emt 0:00:42]} (39... Re7 $18 40. Qc8+ Re8 41. Qxc5+ Kg8) 40. hxg5 {[%emt 0:00:05] White mates.} Re7 {[%emt 0:00:12]} 41. Qc8+ {[%emt 0:00:08]} Re8 {[%emt 0:00:13]} 42. Qxc5+ {[%emt 0:00:08]} Kg8 {[%emt 0:00:07]} 43. Qc4+ {[%emt 0:00:04]} Kh7 {[%emt 0:00:39]} 44. Kg4 {[%emt 0:00:22]} Rf8 {[%emt 0:00:55]} 45. Kh5 {[%emt 0:00:15]} Re8 {[%emt 0:01:06]} 46. Qd3+ {[%emt 0:00:27]} Kg8 {[%emt 0:00:15]} 47. Qd7 {[%emt 0:00:05]} Rf8 {[%emt 0:00:20]} 48. Kg6 {[%emt 0:00:06] White took control after the opening.  Weighted Error Value: White=0.21 (precise) /Black=0.51} 1-0

[Event "34th MPL National U14-ch 2022"]
[Site "Ahmedabad"]
[Date "2022.05.10"]
[Round "3.8"]
[White "Gadhavi Veerbhadrasinh"]
[Black "Ankit Ray"]
[Result "1/2-1/2"]
[ECO "B48"]
[WhiteElo "1507"]
[BlackElo "1932"]
[Annotator "TA"]
[PlyCount "50"]
[EventDate "2022.05.09"]
[EventType "swiss"]
[EventCountry "IND"]
[SourceTitle "playchess.com"]
[Source "ChessBase"]
[SourceQuality "1"]
[TimeControl "5400+30"]

{[%evp 16,50,19,9,21,15,79,85,70,56,62,63,54,62,56,58,62,36,57,54,62,48,77,56,56,47,52,50,50,38,47,0,45,0,52,0,52]} 1. e4 {[%emt 0:00:04]} c5 {[%emt 0:00:10]} 2. Nf3 {[%emt 0:00:03]} e6 {[%emt 0:01:03]} 3. d4 {[%emt 0:00:02]} cxd4 {[%emt 0:00:48]} 4. Nxd4 {[%emt 0:00:03]} Nc6 {[%emt 0:00:25]} 5. Nc3 {[%emt 0:00:23]} Qc7 {[%emt 0:03:34]} 6. a3 {[%emt 0:00:12]} a6 {[%emt 0:01:11]} 7. Be3 {[%emt 0:00:19]} Nf6 {[%emt 0:01:38]} 8. Be2 {[%emt 0:09:57]} Be7 {[%emt 0:01:07]} 9. f4 {[%emt 0:01:42][%cal Bf2f4,Bf4e5][%mdl 32]} d6 {[%emt 0:01:07] Against e5. B48: Sicilian: Taimanov: 5 Nc3 Qc7 6 Be3 a6 without Be2.} 10. Qd2 {[%emt 0:02:14]} b5 {[%emt 0:01:46] [#]} (10... O-O $11) 11. Nxc6 $1 $16 {[%emt 0:17:19] White is more active.} Qxc6 {[%emt 0:02:07] [#] White is better.} 12. e5 $146 {[%emt 0:03:09]} (12. Bf3 $5 {[%cal Re4e5]} e5 13. Nd5 $14) ({Predecessor:} 12. O-O-O Rb8 13. e5 dxe5 14. fxe5 Nd7 15. Ba7 Rb7 16. Bf3 Qc7 17. Bxb7 Qxb7 18. Bd4 {0-1 (40) Gutschenreiter,D (1829)-Pysarenko,K (1687) Willingen 2016}) 12... dxe5 {[%emt 0:00:49]} 13. fxe5 {[%emt 0:00:26]} Nd5 {[%emt 0:00:11]} 14. Bf3 {[%emt 0:00:47][%cal Rc3d5]} Bb7 {[%emt 0:00:06]} 15. Nxd5 {[%emt 0:01:31]} exd5 {[%emt 0:00:07]} 16. O-O {[%emt 0:01:09]} O-O {[%emt 0:01:27]} 17. c3 {[%emt 0:02:24]} Rad8 {[%emt 0:04:21]} 18. Bd4 {[%emt 0:03:25]} Qg6 {[%emt 0:04:36]} 19. Rae1 {[%emt 0:03:03]} Bc8 {[%emt 0:00:25]} 20. Qd1 {[%emt 0:08:31]} Be6 {[%emt 0:02:48]} 21. Bh5 {[%emt 0:11:33]} Qh6 {[%emt 0:00:16]} 22. Bg4 {[%emt 0:00:44]} Qg6 {[%emt 0:02:05]} 23. Bh5 {[%emt 0:00:19]} Qh6 {[%emt 0:00:28]} 24. Bg4 {[%emt 0:02:16]} Qg6 {[%emt 0:00:40]} 25. Bh5 {[%emt 0:01:01]} Qh6 $1 {[%emt 1:09:45] Weighted Error Value: White=0.14 (very precise) /Black=0.12 (very precise)} 1/2-1/2

[Event "34th MPL National U14-ch 2022"]
[Site "Ahmedabad"]
[Date "2022.05.10"]
[Round "3.9"]
[White "Bharadia Yash"]
[Black "Jaidambareesh N R"]
[Result "1/2-1/2"]
[ECO "B33"]
[WhiteElo "1924"]
[BlackElo "1521"]
[Annotator "TA"]
[PlyCount "119"]
[EventDate "2022.05.09"]
[EventType "swiss"]
[EventCountry "IND"]
[SourceTitle "playchess.com"]
[Source "ChessBase"]
[SourceQuality "1"]
[TimeControl "5400+30"]

{[%evp 26,119,27,20,26,20,26,10,0,-14,-8,-13,22,0,-6,-10,22,-15,-17,-18,-8,-37,0,0,38,27,113,120,124,108,227,222,226,211,327,324,296,268,272,264,294,-89,-15,-109,-112,-107,-121,-169,-170,-167,-65,-130,-87,-152,-152,-152,-152,-159,-152,-177,-177,-177,-177,-177,-159,-159,-159,-159,-159,-159,-159,-159,-152,-152,-152,-152,-55,-56,-26,-26,-19,-19,-8,-222,-222,-215,-214,-199,-8,-8,-8,-8,-8,-8,-8,-8]} 1. e4 {[%emt 0:08:07]} c5 {[%emt 0:00:08]} 2. Nf3 {[%emt 0:00:49]} Nc6 {[%emt 0:00:08]} 3. d4 {[%emt 0:00:04]} cxd4 {[%emt 0:00:06]} 4. Nxd4 {[%emt 0:00:07]} Nf6 {[%emt 0:00:04]} 5. Nc3 {[%emt 0:00:09]} e5 {[%emt 0:00:04]} 6. Ndb5 {[%emt 0:00:06]} d6 {[%emt 0:00:05]} 7. Bg5 {[%emt 0:00:06]} a6 {[%emt 0:00:03]} 8. Bxf6 {[%emt 0:00:09]} gxf6 {[%emt 0:00:04]} 9. Na3 {[%emt 0:00:07]} b5 {[%emt 0:00:03]} 10. Nd5 {[%emt 0:00:13]} Bg7 {[%emt 0:00:04]} 11. c3 {[%emt 0:03:36]} f5 {[%emt 0:01:04]} 12. exf5 {[%emt 0:00:07]} Bxf5 {[%emt 0:00:07]} 13. Be2 {[%emt 0:00:04]} O-O {[%emt 0:02:08]} 14. Nc2 {[%emt 0:00:51]} Kh8 {[%emt 0:03:42] B33: Sicilian: Pelikan and Sveshnikov Variations.} 15. O-O {[%emt 0:04:45]} Be6 {[%emt 0:02:27]} 16. Nce3 {[%emt 0:00:53]} f5 {[%emt 0:00:08]} 17. f4 {[%emt 0:00:16]} Ne7 {[%emt 0:02:11]} 18. Kh1 {[%emt 0:06:46]} Ng6 {[%emt 0:07:25]} 19. g3 {[%emt 0:13:46]} Rb8 {[%emt 0:12:30]} 20. Qd2 {[%emt 0:04:44] [#]} a5 $146 {[%emt 0:02:57]} ({Predecessor:} 20... exf4 21. gxf4 Qd7 22. Rad1 Qb7 23. Qe1 Bxd5+ 24. Nxd5 Rbe8 25. Qd2 Re6 26. Bf3 Nh4 {½-½ (47) Sorin,B (2106)-Lauradoux,C (1880) France 2000}) 21. a4 {[%emt 0:01:37]} bxa4 {[%emt 0:00:47]} 22. Rxa4 {[%emt 0:00:36]} Bd7 {[%emt 0:00:28]} 23. Raa1 {[%emt 0:05:14]} Bc6 {[%emt 0:02:32]} 24. Bf3 $1 {[%emt 0:01:53]} Rf7 {[%emt 0:17:19]} 25. Bg2 {[%emt 0:05:09]} e4 {[%emt 0:11:47]} (25... Bd7 $11 {keeps the balance.}) 26. Rfd1 $16 {[%emt 0:05:28]} Bd7 {[%emt 0:02:41]} 27. Nc4 {[%emt 0:00:49][%csl LRa5,LRd6]} a4 {[%emt 0:05:57]} (27... Be6 $16) 28. Nxd6 $18 {[%emt 0:01:16]} Rf8 {[%emt 0:00:05]} 29. Nb4 {[%emt 0:08:37][%cal Od6e4] Pair of Knights!} Qe7 {[%emt 0:05:37] [#]} (29... Qb6 $142 30. Nxe4 Be6) 30. Nxe4 $1 {[%emt 0:01:49][%mdl 512]} Rfd8 {[%emt 0:00:19]} (30... fxe4 31. Qxd7) 31. Ng5 {[%emt 0:01:19]} h6 {[%emt 0:01:58]} 32. Nf3 {[%emt 0:01:08]} Be6 {[%emt 0:01:19]} 33. Nd4 $2 {[%emt 0:03:20] [#]} (33. Qc1 $18 Qe8 34. Rxd8 Rxd8 35. Nd4) 33... Rxb4 {[%emt 0:01:53]} (33... Rxd4 $1 $17 34. cxd4 Rxb4) 34. Qe2 {[%emt 0:08:38]} (34. Nxf5 $1 $11 Rxd2 35. Nxe7 Rxd1+ 36. Rxd1 Rxb2 37. Nxg6+ Kg8 38. Be4) 34... Rbxd4 $17 {[%emt 0:01:06]} ({But not} 34... Bxd4 $6 35. cxb4 Bb3 36. Qxe7 Nxe7 37. Rd3 $11) 35. cxd4 {[%emt 0:00:10]} Bb3 {[%emt 0:00:06][%mdl 64] Discovered Attack} 36. Qxe7 {[%emt 0:00:59]} (36. Rd2 $17 {might work better.}) 36... Nxe7 $19 {[%emt 0:19:08]} 37. Re1 {[%emt 0:00:45]} Ng6 {[%emt 0:00:00]} ({Black should play} 37... Bf6 $19 38. Re2 Rxd4) 38. Bc6 {[%emt 0:02:15]} (38. Bh3 $15) 38... Bxd4 {[%emt 0:00:00]} 39. Rxa4 {[%emt 0:00:18]} (39. Re2 $142) 39... Bxa4 $17 {[%emt 0:00:00]} ({Not} 39... Bxb2 40. Ra7 Bg7 41. Bf3 $11) 40. Bxa4 {[%emt 0:00:04]} Bxb2 {[%emt 0:00:00]} 41. Kg2 {[%emt 0:01:23]} Kg7 {[%emt 0:00:00]} 42. Re6 {[%emt 0:01:04]} Rd2+ {[%emt 0:00:00]} 43. Kh3 {[%emt 0:00:08]} Bf6 {[%emt 0:00:00]} 44. Rb6 {[%emt 0:00:39]} Ne7 {[%emt 0:04:00]} 45. Rb7 {[%emt 0:00:20]} Ra2 {[%emt 0:00:00]} 46. Bd7 {[%emt 0:00:40]} Ra5 {[%emt 0:00:00]} 47. Rb5 {[%emt 0:00:06]} Rxb5 {[%emt 0:00:00]} 48. Bxb5 {[%emt 0:00:03]} Bd4 {[%emt 0:00:00]} 49. Kg2 {[%emt 0:02:01]} Kf6 {[%emt 0:00:00]} 50. Kf3 {[%emt 0:00:07]} Nc8 {[%emt 0:00:00]} (50... Nd5 $17 51. h3 Bc5) 51. h3 {[%emt 0:00:17]} Nd6 {[%emt 0:00:00]} 52. Bd3 {[%emt 0:00:06]} h5 {[%emt 0:00:00]} 53. g4 {[%emt 0:00:01]} h4 {[%emt 0:00:00]} 54. gxf5 $2 {[%emt 0:00:07]} (54. Bxf5 $11 Nxf5 55. gxf5) 54... Bc3 $19 {[%emt 0:00:00]} ({Weaker is} 54... Nxf5 55. Bxf5 Kxf5 56. Kg2 $11) 55. Kg4 {[%emt 0:00:09]} Be1 {[%emt 0:00:00]} 56. Kf3 {[%emt 0:00:05]} Nxf5 $2 {[%emt 0:00:00]} (56... Nc8 $19 {White must now prevent ...Nb6.} 57. Bb1 Na7) 57. Bxf5 $11 {[%emt 0:00:08] The position is equal.} Kxf5 {[%emt 0:00:00]} 58. Kg2 {[%emt 0:00:09]} Kxf4 {[%emt 0:00:00]} 59. Kh1 {[%emt 0:00:07]} Kg3 {[%emt 0:00:00]} 60. Kg1 {[%emt 0:00:04] Weighted Error Value: White=0.40/Black=0.30} 1/2-1/2